Cogmind - Beta 11 @@@ ROGUE MODE // 2022.07.21 @ 11:40:52 Player: Nalzok Result: Destroyed by Striker with Plasma Lance Performance ------------- Evolutions (7) 3500 Regions Visited (22) 4400 Robots Destroyed (194) 970 Value Destroyed (7076) 7076 Prototype IDs (23) 460 Alien Tech Used (2) 400 Bonus (3264) 3264 TOTAL SCORE: 20070 Bonus ------- High Alert Combat Kills 383 Follower Combat Kills 1483 Met Zhirov 300 Met Warlord at Base 500 MAIN.C Attacked Warlord 500 Scanned by Researcher 500 Friendly Fire -402 Cogmind --------- Core Integrity 0/1300 Matter 69/300 Energy 700/700 System Corruption 15% Temperature Cool (0) Movement Core (300) Ox5 Location -3/Testing Parts ------- > --- POWER (2) -------- (None) > --- PROPULSION (4) --- (None) > --- UTILITY (12) ----- Experimental Energy Well Machine Analyzer Enhanced Optical Array Advanced Salvage Targeting Computer Advanced Hacking Suite Advanced Hacking Suite > --- WEAPON (3) ------- Tactical Quantum Warhead > --- INVENTORY (5) ---- Makeshift ECM Suite Vortex Shotgun (50) Hypervelocity Multirail Nanosword Peak State ------------ > --- POWER ------------ Light Nuclear Core Light Nuclear Core > --- PROPULSION ------- Nuclear Pulse Array Impulse Thruster Array > --- UTILITY ---------- Medium Storage Unit Weight Redist. System Weight Redist. System Machine Analyzer Long-range Sensor Array Advanced Salvage Targeting Computer Makeshift ECM Suite Improved Reaction Control System Experimental Utility Shielding Experimental Utility Shielding Advanced Hacking Suite Advanced Hacking Suite > --- WEAPON ----------- Force Lance > --- INVENTORY -------- Nuclear Pulse Array Nuclear Pulse Array Advanced Thermal Generator Transdimensional Reconstructor Vortex Shotgun Vortex Shotgun Sapper Charge [Rating: 101] Favorites ----------- Power Light Nuclear Core Engine Light Deuterium Engine Power Core Light Nuclear Core Reactor Light Antimatter Reactor Propulsion Flexi-carbon Leg Treads Heavy Treads Leg Flexi-carbon Leg Wheel Wheel Hover Unit Improved Antigrav System Flight Unit Nuclear Pulse Array Utility Machine Analyzer Device Advanced Heat Sink Storage Huge Storage Unit Processor Machine Analyzer Hackware Advanced Hacking Suite Protection Experimental Utility Shielding Weapon Bore Cannon Energy Gun Gatling Laser Energy Cannon Phase Cannon Ballistic Gun Heavy Machine Gun Ballistic Cannon Bore Cannon Launcher Heavy Shock Bomb Launcher Impact Weapon Powered Hammer Slashing Weapon Phasing Sabre Piercing Weapon Force Lance Build | -11 -10 -10 -9 -8 -7 -7 -6 -6 -5 -5 -5 -5 -5 -5 -4 -4 -4 -4 -4 -3 -3 -3 ------- Run | Scr Mat Min Mat Mat Fac Sto Fac Ext Fac Was Fac Upp Upp Zhi Pro Fac Upp Upp War Pro Res Tes Slots Evolved 14 | . . . 2 2 2 . 2 . 2 . . . . . . 2 . . . . 2 . Power 1 | . . . . . 1 . . . . . . . . . . . . . . . . . Propulsion 2 | . . . . 2 . . . . . . . . . . . . . . . . . . Utility 10 | . . . 2 . 1 . 1 . 2 . . . . . . 2 . . . . 2 . Weapon 1 | . . . . . . . 1 . . . . . . . . . . . . . . . Parts Attached 315 | . 2 . 7 31 26 40 6 74 49 8 14 . 1 8 . 9 6 . 11 . 16 7 Power 41 | . . . . 5 6 8 . 10 5 2 2 . . . . 2 . . 1 . . . Engine 14 | . . . . 5 1 2 . 4 1 1 . . . . . . . . . . . . Core 25 | . . . . . 5 6 . 5 4 . 2 . . . . 2 . . 1 . . . Reactor 2 | . . . . . . . . 1 . 1 . . . . . . . . . . . . Propulsion 86 | . . . 2 13 6 15 . 28 9 2 2 . . 2 . 2 . . . . 5 . Treads 4 | . . . . . . 2 . . . 2 . . . . . . . . . . . . Leg 43 | . . . . 1 1 8 . 28 4 . . . . 1 . . . . . . . . Wheel 29 | . . . 2 12 5 5 . . 5 . . . . . . . . . . . . . Hover 1 | . . . . . . . . . . . . . . . . . . . . . 1 . Flight 9 | . . . . . . . . . . . 2 . . 1 . 2 . . . . 4 . Utility 107 | . 2 . 4 5 8 6 5 19 17 2 7 . . 5 . 3 6 . 8 . 8 2 Device 58 | . 2 . 2 3 5 2 3 10 6 . 5 . . 4 . 2 3 . 3 . 7 1 Storage 7 | . . . 1 . 1 . 1 1 1 . 1 . . . . . . . . . . 1 Processor 19 | . . . 1 1 2 2 1 4 5 . . . . . . . 2 . . . 1 . Hackware 4 | . . . . . . . . . 1 . 1 . . 1 . 1 . . . . . . Protection 19 | . . . . 1 . 2 . 4 4 2 . . . . . . 1 . 5 . . . Artifact . | . . . . . . . . . . . . . . . . . . . . . . . Weapon 81 | . . . 1 8 6 11 1 17 18 2 3 . 1 1 . 2 . . 2 . 3 5 Energy Gun 4 | . . . 1 1 . . . 1 . . . . . . . . . . . . 1 . Energy Cannon 2 | . . . . . . . . . 1 . . . . . . 1 . . . . . . Ballistic Gun 32 | . . . . 6 2 3 1 8 8 1 2 . . . . . . . . . . 1 Ballistic Cannon 16 | . . . . . 2 5 . 5 3 . . . . 1 . . . . . . . . Launcher 11 | . . . . 1 2 . . . 3 1 1 . . . . . . . 1 . . 2 Special Weapon . | . . . . . . . . . . . . . . . . . . . . . . . Impact Weapon 2 | . . . . . . 2 . . . . . . . . . . . . . . . . Slashing Weapon 7 | . . . . . . . . 2 2 . . . 1 . . . . . . . . 2 Piercing Weapon 7 | . . . . . . 1 . 1 1 . . . . . . 1 . . 1 . 2 . Special Melee Weapon . | . . . . . . . . . . . . . . . . . . . . . . . Unidentified Prototypes 14 | . . . . 1 . . . . . . . . . 3 . . . . 1 . 3 6 Corrupted Parts 1 | . . . . . . . . . 1 . . . . . . . . . . . . . System Corruption 1 | . . . . . . . . . 1 . . . . . . . . . . . . . Parts Lost 116 | . . . . 15 10 13 2 29 27 . . . 1 . . 1 1 . . . 14 3 Power 16 | . . . . 1 1 3 . 4 4 . . . 1 . . . . . . . 2 . Propulsion 40 | . . . . 8 6 5 1 7 8 . . . . . . . . . . . 4 1 Utility 34 | . . . . 3 2 2 1 8 8 . . . . . . 1 1 . . . 7 1 Weapon 26 | . . . . 3 1 3 . 10 7 . . . . . . . . . . . 1 1 Highest Loss Streak 12 | . . . . 5 5 8 2 11 12 . . . 1 . . 1 1 . . . 11 3 To Critical Strikes . | . . . . . . . . . . . . . . . . . . . . . . . Average Slot Usage (%) 85 | . 98 100 99 92 90 91 90 90 87 76 75 70 67 73 76 76 77 78 78 78 65 38 Engine 3 | . 14 14 11 8 3 5 . 2 4 4 4 . . . . . . . . . . . Core 6 | . . . . . 10 7 13 5 3 5 5 11 5 5 5 8 10 10 10 10 6 . Treads 1 | . . . . . . 1 . . . 6 10 . . . . . . . . . . . Leg 11 | . 28 28 12 1 3 15 25 24 13 7 . . . . . . . . . . . . Wheel 6 | . . . 9 29 25 10 . . 5 . . . . . . . . . . . . . Flight 1 | . . . . . . . . . . . . 11 11 11 11 10 10 10 10 10 8 . Device 13 | . 13 14 29 16 17 16 11 15 8 1 6 17 17 17 17 21 21 15 14 15 13 1 Storage 5 | . 14 14 11 9 7 7 11 1 8 . 2 5 5 5 5 5 5 5 5 5 3 3 Processor 12 | . . . 2 9 9 10 13 14 16 17 13 11 11 11 11 10 13 15 12 10 10 14 Hackware 2 | . . . . . . . . . 1 5 8 11 11 11 11 13 10 10 10 10 9 9 Protection 2 | . . . . . . 2 2 3 4 5 3 . . . . . . 5 7 10 6 . Energy Gun 1 | . 14 14 20 7 . . . 2 . . . . . . . . . . . . . . Ballistic Gun 6 | . 14 14 1 10 6 1 6 5 6 16 15 . . . . . . . . . . . Ballistic Cannon 3 | . . . . . 3 8 6 8 3 . . . . 2 5 . . . . . . . Naked Turns 21 | . . . . . . . . 21 . . . . . . . . . . . . . . Heaviest Build 138 | 13 14 14 91 96 110 126 121 115 138 86 79 25 25 32 32 32 32 28 31 31 32 10 Greatest Support 140 | 20 20 20 26 52 46 48 48 75 85 140 140 26 26 32 32 32 32 32 32 32 37 12 Greatest Overweight (x) 13 | . . . 3 3 9 10 3 3 13 5 3 . . 1 . . . . . . 1 2 Average Overweight (x) . | . . . 1 2 2 3 2 . 2 1 . . . . . . . . . . . . Largest Inventory Capacity 25 | 8 8 8 25 25 25 25 25 25 25 5 10 10 10 10 10 10 10 10 10 10 10 5 Average Capacity 15 | 8 8 8 14 25 25 25 25 6 19 5 7 10 10 10 10 10 10 10 10 10 9 5 Most Carried 25 | 5 8 8 10 25 25 25 25 25 18 5 10 10 10 10 10 10 10 10 10 10 10 5 Average Carried 13 | 5 7 8 8 20 24 24 24 5 8 4 6 10 9 9 9 9 10 10 9 10 8 4 Final Capacity 25 | 8 8 8 25 25 25 25 25 5 5 5 10 10 10 10 10 10 10 10 10 10 5 5 Final Carried 25 | 4 8 8 10 25 25 25 25 5 5 5 10 10 10 10 10 10 10 10 10 10 3 4 Class Distribution -------------------- 38% | Scavenger-Mutant 17% | Hacker-Mutant 13% | Mutant 11% | Scavenger-Tank 9% | Scavenger-Gunner 7% | Scavenger-Skirmisher Dominant Class ---------------- Mutant | -10/Materials Mutant | -10/Mines Mutant | -9/Materials Scavenger-Mutant | -8/Materials Scavenger-Mutant | -7/Factory Scavenger-Mutant | -7/Storage Scavenger-Gunner | -6/Factory Scavenger-Skirmisher | -6/Extension Scavenger-Mutant | -5/Factory Scavenger-Mutant | -5/Waste Scavenger-Tank | -5/Factory Hacker-Mutant | -5/Upper Caves Hacker-Mutant | -5/Upper Caves Hacker-Mutant | -5/Zhirov Hacker-Mutant | -4/Proximity Caves Hacker-Mutant | -4/Factory Hacker-Mutant | -4/Upper Caves Hacker-Mutant | -4/Upper Caves Hacker-Mutant | -4/Warlord Hacker-Mutant | -3/Proximity Caves Hacker-Mutant | -3/Research Hacker-Mutant | -3/Testing Resources | -11 -10 -10 -9 -8 -7 -7 -6 -6 -5 -5 -5 -5 -5 -5 -4 -4 -4 -4 -4 -3 -3 -3 ----------- Run | Scr Mat Min Mat Mat Fac Sto Fac Ext Fac Was Fac Upp Upp Zhi Pro Fac Upp Upp War Pro Res Tes Matter Collected 8149 | 197 . 32 73 523 685 1117 484 2741 912 518 444 . 23 104 19 75 32 42 110 . . 18 Remotely 665 | . . . . . . . . . 239 426 . . . . . . . . . . . . Salvage Created 8296 | . . 86 121 1535 469 1154 546 2240 1132 99 499 . . 108 . 114 . . . . 158 35 Parts 430 | . . 3 7 84 38 59 17 100 61 4 34 . . . . 7 . . . . 14 2 Haulers Intercepted 10 | . . . 1 2 1 4 1 . . . 1 . . . . . . . . . . . Recyclers Shooed 10 | . . . 1 1 . 1 1 3 3 . . . . . . . . . . . . . Parts Field Recycled . | . . . . . . . . . . . . . . . . . . . . . . . Retrieved Matter . | . . . . . . . . . . . . . . . . . . . . . . . Parts Self-Destructed 23 | . . . . . . . . . . . . . . . . . 10 . 13 . . . Prevented 15 | . . . . . . . . . . . . . . . . . . . 15 . . . Kills | -11 -10 -10 -9 -8 -7 -7 -6 -6 -5 -5 -5 -5 -5 -5 -4 -4 -4 -4 -4 -3 -3 -3 ------- Run | Scr Mat Min Mat Mat Fac Sto Fac Ext Fac Was Fac Upp Upp Zhi Pro Fac Upp Upp War Pro Res Tes Combat Hostiles Destroyed 124 | . . . 2 23 15 19 7 31 18 . 3 . . . . 4 . . . . 2 . Melee 8 | . . . . . . 1 . . 1 . . . . . . 4 . . . . 2 . Guns 52 | . . . 2 21 2 3 . 15 6 . 3 . . . . . . . . . . . Cannons 50 | . . . . . 6 14 7 16 7 . . . . . . . . . . . . . AOE 12 | . . . . 2 7 . . . 3 . . . . . . . . . . . . . Classes Destroyed 18 | . . 1 3 5 1 3 . 3 1 . . . . . . . . . . . . 1 Worker 19 | . . . . 7 7 4 . . 1 . . . . . . . . . . . . . Builder 13 | . . . . 2 2 . . 5 1 . 3 . . . . . . . . . . . Tunneler 1 | . . . . 1 . . . . . . . . . . . . . . . . . . Hauler 10 | . . . 1 2 1 4 1 . . . 1 . . . . . . . . . . . Recycler 15 | . . 1 . 4 . 2 2 4 1 . 1 . . . . . . . . . . . Mechanic 2 | . . . . . . 1 . . 1 . . . . . . . . . . . . . Operator 3 | . . . . . . 1 . 1 1 . . . . . . . . . . . . . Watcher 4 | . . . . . . . . 2 1 . . . . . . . . . . . 1 . Swarmer 22 | . . . 1 7 7 . 3 . . . . . . . . 4 . . . . . . Grunt 42 | . . . . 11 2 7 1 18 3 . . . . . . . . . . . . . Brawler 2 | . . . . . . 1 . 1 . . . . . . . . . . . . . . Duelist 2 | . . . . . . . . 1 . . 1 . . . . . . . . . . . Researcher 2 | . . . . . . . . . . . . . . . . . . . . . . 2 Sentry 21 | . . . 1 3 2 7 1 6 1 . . . . . . . . . . . . . Specialist 2 | . . . . . . . . . 2 . . . . . . . . . . . . . Hunter 13 | . . . . 2 . 3 1 3 4 . . . . . . . . . . . . . Programmer 18 | . . . . . 4 1 1 . 8 . 2 . . . . . . . . . 2 . Behemoth 2 | . . . . . . . . 2 . . . . . . . . . . . . . . Wasp 1 | . . . . . . . . . . 1 . . . . . . . . . . . . Best Kill Streak 13 | . . 1 2 9 13 4 4 8 5 . 3 . . . . 4 . . . . 1 2 Combat Bots Only 6 | . . . 2 4 6 3 4 6 4 . 2 . . . . 4 . . . . 1 . Max Kills in Single Turn 5 | . . 1 1 3 5 1 1 3 2 1 1 . . . . 1 . . . . 1 2 Gunslinging . | . . . . . . . . . . . . . . . . . . . . . . . Exploded 4 | . . . . 2 4 . . . 1 . . . . . . . . . . . . . Melee 1 | . . . . . . 1 . . 1 . . . . . . 1 . . . . 1 . Uniques/NPCs Destroyed . | . . . . . . . . . . . . . . . . . . . . . . . Combat | -11 -10 -10 -9 -8 -7 -7 -6 -6 -5 -5 -5 -5 -5 -5 -4 -4 -4 -4 -4 -3 -3 -3 -------- Run | Scr Mat Min Mat Mat Fac Sto Fac Ext Fac Was Fac Upp Upp Zhi Pro Fac Upp Upp War Pro Res Tes Damage Taken 18478 | . . 11 82 1348 1168 1965 632 4171 4816 28 572 67 148 . 18 115 86 . . . 2567 684 Core 3407 | . . . 10 246 201 313 80 562 482 14 85 18 59 . . 17 . . . . 973 347 Absorbed by Shields 25 | . . . . . 25 . . . . . . . . . . . . . . . . . Reduced by Siege Mode 10 | . . . . . . . . . . . 10 . . . . . . . . . . . Redirected to Shielding 350 | . . . . . . . . 35 . . . . . . . . . . . . 315 . Regen/Repaired (Parts) 102 | . . . . . . 102 . . . . . . . . . . . . . . . . Core Remaining (%) 66 | 100 . 100 97 55 . 26 . 24 . . . . . . 34 . . . . 98 . . Volleys Fired 563 | . . 4 13 117 52 97 20 136 93 5 20 . . . . . . . . . 5 1 Largest 3 | . . 2 2 2 2 2 2 3 3 1 3 . . . . . . . . . 1 1 Hottest 195 | . . 60 90 96 60 87 85 194 195 33 93 . . . . . . . . . 60 20 Shots Fired 1136 | . . 8 26 198 72 152 40 373 196 5 60 . . . . . . . . . 5 1 Gun 689 | . . 8 26 197 38 27 20 233 71 4 60 . . . . . . . . . 5 . Cannon 430 | . . . . . 29 125 20 140 116 . . . . . . . . . . . . . Launcher 17 | . . . . 1 5 . . . 9 1 . . . . . . . . . . . 1 Special . | . . . . . . . . . . . . . . . . . . . . . . . Kinetic 907 | . . 4 . 107 67 152 40 337 136 4 60 . . . . . . . . . . . Thermal 207 | . . 4 26 90 . . . 36 51 . . . . . . . . . . . . . Explosive 13 | . . . . 1 5 . . . 5 1 . . . . . . . . . . . 1 Electromagnetic 4 | . . . . . . . . . 4 . . . . . . . . . . . . . Entropic 5 | . . . . . . . . . . . . . . . . . . . . . 5 . Robot Hit Streak 28 | . . 3 8 28 8 12 7 13 9 2 9 . . . . . . . . . 10 . Robot Miss Streak 9 | . . 1 2 4 9 4 3 6 9 2 4 . . . . . . . . . 5 6 Penetration Max 2 | . . . . 1 . . . 2 1 . 1 . . . . . . . . . . . Secondary Targets 1 | . . . . 1 . . . . . . . . . . . . . . . . . . Max Gunslinging Chain 1 | . . . . 1 . . . . . . . . . . . . . . . . . . Shots Hit Robots 747 | . . 6 19 136 44 104 24 242 108 2 40 . . 1 . 7 . . . . 14 . Core Hits 412 | . . 2 6 66 29 42 13 151 69 4 16 . . 1 . 2 . . . . 8 3 Critical Kills 18 | . . . . 1 . . . 15 2 . . . . . . . . . . . . . Critical Parts Destroyed 41 | . . . . . . 1 . 33 6 . 1 . . . . . . . . . . . Critical Strikes 84 | . . . 1 3 4 6 2 56 9 . 1 . . . . . . . . . 2 . Burn 3 | . . . 1 2 . . . . . . . . . . . . . . . . . . Meltdown 1 | . . . . . . . . . 1 . . . . . . . . . . . . . Destroy 65 | . . . . 1 . . . 56 7 . 1 . . . . . . . . . . . Blast 11 | . . . . . 4 5 2 . . . . . . . . . . . . . . . Smash 1 | . . . . . . 1 . . . . . . . . . . . . . . . . Impale 3 | . . . . . . . . . 1 . . . . . . . . . . . 2 . Melee Attacks 91 | . . . . . . 8 . 3 19 . . . 7 1 . 13 2 . . . 32 6 Impact 4 | . . . . . . 4 . . . . . . . . . . . . . . . . Slashing 36 | . . . . . . . . . 8 . . . 7 1 . 13 2 . . . . 5 Piercing 51 | . . . . . . 4 . 3 11 . . . . . . . . . . . 32 1 Sneak Attacks 2 | . . . . . . . . . 2 . . . . . . . . . . . . . Combat Hostiles . | . . . . . . . . . . . . . . . . . . . . . . . Follow-up Attacks . | . . . . . . . . . . . . . . . . . . . . . . . Damage Inflicted 21313 | . . 69 221 2021 2946 3087 940 5418 3909 157 1160 . . 98 . 307 . . . . 610 370 Guns 8732 | . . 69 221 1854 536 356 155 3523 698 27 1160 . . . . . . . . . 133 . Cannons 8529 | . . . . . 1106 2663 785 1895 2066 14 . . . . . . . . . . . . Explosions 2896 | . . . . 167 1304 . . . 939 116 . . . . . . . . . . . 370 Melee 1156 | . . . . . . 68 . . 206 . . . . 98 . 307 . . . . 477 . Ramming . | . . . . . . . . . . . . . . . . . . . . . . . Kinetic 14212 | . . 46 . 1097 1642 3019 940 4755 1526 27 1160 . . . . . . . . . . . Thermal 3038 | . . 23 221 757 . . . 663 1374 . . . . . . . . . . . . . Explosive 2407 | . . . . 167 1304 . . . 450 116 . . . . . . . . . . . 370 Electromagnetic 353 | . . . . . . . . . 353 . . . . . . . . . . . . . Impact 82 | . . . . . . 68 . . . 14 . . . . . . . . . . . . Slashing 405 | . . . . . . . . . . . . . . 98 . 307 . . . . . . Piercing 683 | . . . . . . . . . 206 . . . . . . . . . . . 477 . Entropic 133 | . . . . . . . . . . . . . . . . . . . . . 133 . Highest Corruption 16 | . . . . . 1 4 . 12 16 16 16 16 16 16 16 2 2 . . . 15 15 Average Corruption 9 | . . . . . 1 2 . 7 10 16 16 16 16 16 16 2 1 . . . 10 15 Corruption Purged 2 | . . . . . . . . . . . . . . . . . 2 . . . . . Corruption Blocked 7 | . . . . . . . . . . . . . . . . . . . . . 7 . Effects 253 | . . . . . 4 19 . 64 61 31 39 6 9 3 4 . 3 . . . 2 8 Message Errors 50 | . . . . . 1 5 . 11 11 6 8 1 2 1 1 . 1 . . . . 2 Matter Fused 64 | . . . . . 1 3 . 19 17 6 8 . 4 1 1 . 1 . . . . 3 Heat Flow Errors 20 | . . . . . 1 2 . 4 5 1 6 . . . 1 . . . . . . . Energy Discharges 36 | . . . . . . 2 . 10 9 5 5 1 . . 1 . 1 . . . . 2 Parts Rejected 3 | . . . . . . 1 . 2 . . . . . . . . . . . . . . Data Loss (minor) 33 | . . . . . 1 4 . 6 6 6 6 1 2 . . . . . . . 1 . Data Loss (major) 12 | . . . . . . . . 3 2 1 3 2 1 . . . . . . . . . Misfires 7 | . . . . . . 1 . 2 2 1 1 . . . . . . . . . . . Alerts 13 | . . . . . . 1 . 4 3 3 1 . . 1 . . . . . . . . Misdirections 6 | . . . . . . . . . 2 1 . 1 . . . . . . . . 1 1 Weapon Failures 9 | . . . . . . . . 3 4 1 1 . . . . . . . . . . . Overload Shots . | . . . . . . . . . . . . . . . . . . . . . . . Overflow Damage 678 | . . . . . 285 134 93 . 107 4 . . . . . 51 . . . . 4 . Projectiles 435 | . . . . . 122 113 93 . 107 . . . . . . . . . . . . . Explosions 167 | . . . . . 163 . . . . 4 . . . . . . . . . . . . Melee 76 | . . . . . . 21 . . . . . . . . . 51 . . . . 4 . Knockbacks 40 | . . . . . 4 16 3 7 10 . . . . . . . . . . . . . Impact . | . . . . . . . . . . . . . . . . . . . . . . . Kinetic 39 | . . . . . 4 16 3 7 9 . . . . . . . . . . . . . Secondary 1 | . . . . . . . . . 1 . . . . . . . . . . . . . Self-Inflicted Damage 292 | . . . . . 86 . . . 104 29 . . . . . . . . . . . 73 Shots 6 | . . . . . 1 . . . 3 1 . . . . . . . . . . . 1 Rammed . | . . . . . . . . . . . . . . . . . . . . . . . Targets Rammed . | . . . . . . . . . . . . . . . . . . . . . . . Kicked . | . . . . . . . . . . . . . . . . . . . . . . . Crushed . | . . . . . . . . . . . . . . . . . . . . . . . Highest Temperature 533 | . . . 105 236 130 520 . 533 245 209 429 . . . 122 . . . . . . . Average Temperature 101 | . . . 41 88 24 158 . 76 55 95 140 . . . 62 . . . . . . . Received Heat Transfer 3303 | . . 6 27 540 144 666 30 1026 741 . . 36 18 . . . . . . . 60 9 Effects 18 | . . . . . . 4 . 9 . . 5 . . . . . . . . . . . Shutdowns 10 | . . . . . . 3 . 3 . . 4 . . . . . . . . . . . Energy Bleed 1 | . . . . . . . . 1 . . . . . . . . . . . . . . Matter Decay 2 | . . . . . . 1 . 1 . . . . . . . . . . . . . . Short Circuit 1 | . . . . . . . . 1 . . . . . . . . . . . . . . Damage (minor) 3 | . . . . . . . . 2 . . 1 . . . . . . . . . . . Damage (major) 1 | . . . . . . . . 1 . . . . . . . . . . . . . . Siege Activations 1 | . . . . . . . . . . . 1 . . . . . . . . . . . Total Turns 9 | . . . . . . . . . . . 9 . . . . . . . . . . . Longest Duration 9 | . . . . . . . . . . . 9 . . . . . . . . . . . Robots Corrupted . | . . . . . . . . . . . . . . . . . . . . . . . Combat Hostiles . | . . . . . . . . . . . . . . . . . . . . . . . Parts Fried . | . . . . . . . . . . . . . . . . . . . . . . . Impact Corruptions 2 | . . . . . . 1 . . . 1 . . . . . . . . . . . . Robots Melted 1 | . . . . . . . . . 1 . . . . . . . . . . . . . Combat Hostiles 1 | . . . . . . . . . 1 . . . . . . . . . . . . . Parts Melted 9 | . . . 2 4 1 . . 1 1 . . . . . . . . . . . . . Heat Transferred 5673 | . . 50 633 2094 . . . 1450 1446 . . . . . . . . . . . . . Parts Sabotaged . | . . . . . . . . . . . . . . . . . . . . . . . Parts Stolen . | . . . . . . . . . . . . . . . . . . . . . . . Parts Stripped . | . . . . . . . . . . . . . . . . . . . . . . . Power Chain Reactions 1 | . . . . . . . . . 1 . . . . . . . . . . . . . Missiles Intercepted . | . . . . . . . . . . . . . . . . . . . . . . . Alert | -11 -10 -10 -9 -8 -7 -7 -6 -6 -5 -5 -5 -5 -5 -5 -4 -4 -4 -4 -4 -3 -3 -3 ------- Run | Scr Mat Min Mat Mat Fac Sto Fac Ext Fac Was Fac Upp Upp Zhi Pro Fac Upp Upp War Pro Res Tes Peak Influence 839 | . . 35 130 347 643 581 227 839 658 230 559 . . . . 148 . . . . 448 302 Initial 410 | . . . 13 54 140 263 227 70 410 230 7 . . . . 9 . . . . 50 150 Average 259 | . . 5 74 191 323 449 90 278 336 150 276 . . . . 51 . . . . 183 204 Maximum Alert Level 3 | . . . . 1 2 2 1 3 2 1 2 . . . . . . . . . 2 1 Low Security (%) 42 | 100 100 100 100 58 51 . 75 50 14 39 23 . . . . 100 . . . . 61 65 Level 1 32 | . . . . 41 8 28 24 26 48 60 60 . . . . . . . . . 37 34 Level 2 22 | . . . . . 40 71 . 13 37 . 15 . . . . . . . . . . . Level 3 1 | . . . . . . . . 9 . . . . . . . . . . . . . . Level 4 . | . . . . . . . . . . . . . . . . . . . . . . . Level 5 . | . . . . . . . . . . . . . . . . . . . . . . . High Security . | . . . . . . . . . . . . . . . . . . . . . . . Max Security . | . . . . . . . . . . . . . . . . . . . . . . . Squads Dispatched 43 | . . . . 4 7 4 2 6 11 . 2 . . . . . . . . . 5 2 Investigation 9 | . . . . 1 1 . . 4 2 . . . . . . . . . . . 1 . Extermination 9 | . . . . . 2 1 1 . 2 . 1 . . . . . . . . . 2 . Reinforcement 25 | . . . . 3 4 3 1 2 7 . 1 . . . . . . . . . 2 2 Assault . | . . . . . . . . . . . . . . . . . . . . . . . Garrison . | . . . . . . . . . . . . . . . . . . . . . . . Intercept . | . . . . . . . . . . . . . . . . . . . . . . . Searches Triggered . | . . . . . . . . . . . . . . . . . . . . . . . Construction Impeded 7 | . . . . 1 2 1 . 1 2 . . . . . . . . . . . . . Haulers Reinforced 3 | . . . . . 1 1 1 . . . . . . . . . . . . . . . Active Scanning Responses . | . . . . . . . . . . . . . . . . . . . . . . . Cargo Convoy Interrupts 1 | . . . . . . . . . . . . . . . . . . . . . 1 . Stealth | -11 -10 -10 -9 -8 -7 -7 -6 -6 -5 -5 -5 -5 -5 -5 -4 -4 -4 -4 -4 -3 -3 -3 --------- Run | Scr Mat Min Mat Mat Fac Sto Fac Ext Fac Was Fac Upp Upp Zhi Pro Fac Upp Upp War Pro Res Tes Distress Signals 12 | . . . 1 2 1 4 . 2 . . 1 . . . . . . . . . 1 . Communications Jammed . | . . . . . . . . . . . . . . . . . . . . . . . Distress Signals . | . . . . . . . . . . . . . . . . . . . . . . . Times Spotted 336 | . 1 2 14 33 24 29 7 66 38 1 17 8 6 . 1 13 4 1 . 4 55 12 Peak Tracking Total 23 | . 1 2 10 4 6 4 4 6 7 1 8 8 6 . 3 7 4 2 . 5 23 5 Tactical Retreats 48 | . . 1 1 2 2 1 . 10 8 . 1 4 2 . 1 1 . 1 . 2 10 1 Traps | -11 -10 -10 -9 -8 -7 -7 -6 -6 -5 -5 -5 -5 -5 -5 -4 -4 -4 -4 -4 -3 -3 -3 ------- Run | Scr Mat Min Mat Mat Fac Sto Fac Ext Fac Was Fac Upp Upp Zhi Pro Fac Upp Upp War Pro Res Tes Traps Triggered 11 | . . . . 1 2 . . 3 3 . 1 . . . . 1 . . . . . . Indirectly . | . . . . . . . . . . . . . . . . . . . . . . . Trap Hack Attempts . | . . . . . . . . . . . . . . . . . . . . . . . Triggered . | . . . . . . . . . . . . . . . . . . . . . . . Disarmed . | . . . . . . . . . . . . . . . . . . . . . . . Reprogrammed . | . . . . . . . . . . . . . . . . . . . . . . . Reused . | . . . . . . . . . . . . . . . . . . . . . . . Traps Extracted . | . . . . . . . . . . . . . . . . . . . . . . . Installed . | . . . . . . . . . . . . . . . . . . . . . . . Triggered 14 | . . . . . . . . . 1 . . . . . . . . . 11 . 2 . Time Bombs Activated 1 | . . . . . . . . . . . . . . . . . . . . . 1 . Exploded 1 | . . . . . . . . . . . . . . . . . . . . . 1 . Machines | -11 -10 -10 -9 -8 -7 -7 -6 -6 -5 -5 -5 -5 -5 -5 -4 -4 -4 -4 -4 -3 -3 -3 ---------- Run | Scr Mat Min Mat Mat Fac Sto Fac Ext Fac Was Fac Upp Upp Zhi Pro Fac Upp Upp War Pro Res Tes Machines Disabled 34 | . . . . 1 17 5 . 2 7 . 1 . . . . . . . . . . 1 Max in Single Turn 5 | . . . . 1 5 1 . 1 2 . 1 . . . . . . . . . . 1 Garrison Access 4 | . . . . . . . . . 2 . . . . . . . . . . . 2 . Machines Sabotaged . | . . . . . . . . . . . . . . . . . . . . . . . Garrisons Compromised 1 | . . . . . . . . . . . . . . . . . . . . . 1 . Overloaded Fab Kills . | . . . . . . . . . . . . . . . . . . . . . . . Hacking | -11 -10 -10 -9 -8 -7 -7 -6 -6 -5 -5 -5 -5 -5 -5 -4 -4 -4 -4 -4 -3 -3 -3 --------- Run | Scr Mat Min Mat Mat Fac Sto Fac Ext Fac Was Fac Upp Upp Zhi Pro Fac Upp Upp War Pro Res Tes Machines Accessed 78 | . 2 . 1 2 6 3 4 15 7 . 5 . 1 8 . 5 . 1 10 . 5 3 Terminals 46 | . 2 . 1 1 5 2 3 15 3 . 5 . . . . 4 . . . . 2 3 Fabricators 4 | . . . . . 1 . 1 . 1 . . . . . . . . . . . 1 . Repair Stations 2 | . . . . . . 1 . . . . . . . . . 1 . . . . . . Recycling Units . | . . . . . . . . . . . . . . . . . . . . . . . Scanalyzers 2 | . . . . 1 . . . . 1 . . . . . . . . . . . . . Garrison Access 4 | . . . . . . . . . 2 . . . . . . . . . . . 2 . Total Hacks 213 | . 5 . 2 4 14 5 15 34 16 . 19 . 1 47 . 14 . 5 14 . 9 9 Successful 129 | . 1 . . 3 7 3 6 13 8 . 6 . 1 47 . 7 . 5 14 . 4 4 Failed 84 | . 4 . 2 1 7 2 9 21 8 . 13 . . . . 7 . . . . 5 5 Catastrophic 11 | . . . . . 1 2 . 4 2 . . . . . . . . . . . 1 1 Database Lockouts . | . . . . . . . . . . . . . . . . . . . . . . . Manual 80 | . 5 . 2 1 10 4 12 12 3 . 19 . . . . 7 . . . . 3 2 Terminals 121 | . 5 . 2 2 12 3 14 34 6 . 19 . . . . 12 . . . . 3 9 Fabricators 8 | . . . . . 2 . 1 . 3 . . . . . . . . . . . 2 . Repair Stations 4 | . . . . . . 2 . . . . . . . . . 2 . . . . . . Recycling Units . | . . . . . . . . . . . . . . . . . . . . . . . Scanalyzers 5 | . . . . 2 . . . . 3 . . . . . . . . . . . . . Garrison Access 8 | . . . . . . . . . 4 . . . . . . . . . . . 4 . Terminal Hacks 100 | . . . . . 2 . 3 11 3 . 4 . 1 47 . 5 . 5 14 . 1 4 Record 53 | . . . . . . . . . . . . . . 35 . . . 5 12 . . 1 Part Schematic 5 | . . . . . . . . . . . . . . 4 . 1 . . . . . . Robot Analysis 9 | . . . . . . . . 2 1 . 1 . . 4 . 1 . . . . . . Prototype ID Bank 4 | . . . . . . . . . . . . . . 4 . . . . . . . . Open Door 11 | . . . . . . . . 8 . . . . 1 . . . . . 2 . . . Open DSF 3 | . . . . . 1 . . . 1 . . . . . . 1 . . . . . . Level Access Points 2 | . . . . . . . 1 . . . . . . . . . . . . . . 1 Branch Access Points 2 | . . . . . . . . . . . 1 . . . . . . . . . . 1 Terminal Index 2 | . . . . . . . . . 1 . 1 . . . . . . . . . . . Alert Level 1 | . . . . . . . 1 . . . . . . . . . . . . . . . Unreport Threat 6 | . . . . . . . 1 1 . . 1 . . . . 2 . . . . 1 . Recall Reinforcements 1 | . . . . . 1 . . . . . . . . . . . . . . . . . Zone Layout 1 | . . . . . . . . . . . . . . . . . . . . . . 1 Fabricator Hacks 2 | . . . . . 2 . . . . . . . . . . . . . . . . . Load Schematic 1 | . . . . . 1 . . . . . . . . . . . . . . . . . Build 1 | . . . . . 1 . . . . . . . . . . . . . . . . . Repair Station Hacks 3 | . . . . . . 2 . . . . . . . . . 1 . . . . . . Scan Component 1 | . . . . . . 1 . . . . . . . . . . . . . . . . Repair 1 | . . . . . . 1 . . . . . . . . . . . . . . . . Refit 1 | . . . . . . . . . . . . . . . . 1 . . . . . . Recycling Unit Hacks . | . . . . . . . . . . . . . . . . . . . . . . . Scanalyzer 4 | . . . . 2 . . . . 2 . . . . . . . . . . . . . Insert Component 2 | . . . . 1 . . . . 1 . . . . . . . . . . . . . Analyze 2 | . . . . 1 . . . . 1 . . . . . . . . . . . . . Garrison Access Hacks 4 | . . . . . . . . . 2 . . . . . . . . . . . 2 . Seal Access 4 | . . . . . . . . . 2 . . . . . . . . . . . 2 . Unauthorized Hacks 16 | . 1 . . 1 3 1 3 2 1 . 2 . . . . 1 . . . . 1 . Terminals 16 | . 1 . . 1 3 1 3 2 1 . 2 . . . . 1 . . . . 1 . Botnet 14 | . 1 . . 1 2 1 2 2 1 . 2 . . . . 1 . . . . 1 . Operators 2 | . . . . . 1 . 1 . . . . . . . . . . . . . . . Fabricators . | . . . . . . . . . . . . . . . . . . . . . . . Repair Stations . | . . . . . . . . . . . . . . . . . . . . . . . Recycling Units . | . . . . . . . . . . . . . . . . . . . . . . . Scanalyzers . | . . . . . . . . . . . . . . . . . . . . . . . Garrison Access . | . . . . . . . . . . . . . . . . . . . . . . . Data Cores Recovered . | . . . . . . . . . . . . . . . . . . . . . . . Used . | . . . . . . . . . . . . . . . . . . . . . . . Hacking Detections 50 | . 2 . 1 2 6 4 4 9 5 . 5 . . . . 4 . . . . 5 3 Full Trace Events 6 | . . . . . 1 . . 2 2 . . . . . . . . . . . 1 . Feedback Events . | . . . . . . . . . . . . . . . . . . . . . . . Feedback Blocked . | . . . . . . . . . . . . . . . . . . . . . . . Robot Schematics Acquired . | . . . . . . . . . . . . . . . . . . . . . . . Robots Built . | . . . . . . . . . . . . . . . . . . . . . . . Authchips . | . . . . . . . . . . . . . . . . . . . . . . . Time . | . . . . . . . . . . . . . . . . . . . . . . . Total Robot Build Rating . | . . . . . . . . . . . . . . . . . . . . . . . Part Schematics Acquired 7 | . . . . 1 . . . . 1 . . . . 4 . 1 . . . . . . Parts Built 1 | . . . . . 1 . . . . . . . . . . . . . . . . . Authchips . | . . . . . . . . . . . . . . . . . . . . . . . Time 25 | . . . . . 25 . . . . . . . . . . . . . . . . . Total Part Build Rating 1 | . . . . . 1 . . . . . . . . . . . . . . . . . Parts Repaired 1 | . . . . . . 1 . . . . . . . . . . . . . . . . Time 44 | . . . . . . 44 . . . . . . . . . . . . . . . . Parts Recycled . | . . . . . . . . . . . . . . . . . . . . . . . Recycled Matter . | . . . . . . . . . . . . . . . . . . . . . . . Retrieved Matter . | . . . . . . . . . . . . . . . . . . . . . . . Retrieved Components . | . . . . . . . . . . . . . . . . . . . . . . . Parts Scanalyzed 2 | . . . . 1 . . . . 1 . . . . . . . . . . . . . Part Schematics Acquired 2 | . . . . 1 . . . . 1 . . . . . . . . . . . . . Parts Damaged . | . . . . . . . . . . . . . . . . . . . . . . . Bothacking | -11 -10 -10 -9 -8 -7 -7 -6 -6 -5 -5 -5 -5 -5 -5 -4 -4 -4 -4 -4 -3 -3 -3 ------------ Run | Scr Mat Min Mat Mat Fac Sto Fac Ext Fac Was Fac Upp Upp Zhi Pro Fac Upp Upp War Pro Res Tes Used RIF Installer . | . . . . . . . . . . . . . . . . . . . . . . . Robots Hacked . | . . . . . . . . . . . . . . . . . . . . . . . Non-combat . | . . . . . . . . . . . . . . . . . . . . . . . Combat . | . . . . . . . . . . . . . . . . . . . . . . . Robot Hacks Applied . | . . . . . . . . . . . . . . . . . . . . . . . Relay Couplers Released . | . . . . . . . . . . . . . . . . . . . . . . . Fabnet Peak Effective % . | . . . . . . . . . . . . . . . . . . . . . . . Robots Rewired 16 | . . . . . . . . 16 . . . . . . . . . . . . . . Allies Hacked . | . . . . . . . . . . . . . . . . . . . . . . . Hacks Repelled . | . . . . . . . . . . . . . . . . . . . . . . . Allies | -11 -10 -10 -9 -8 -7 -7 -6 -6 -5 -5 -5 -5 -5 -5 -4 -4 -4 -4 -4 -3 -3 -3 -------- Run | Scr Mat Min Mat Mat Fac Sto Fac Ext Fac Was Fac Upp Upp Zhi Pro Fac Upp Upp War Pro Res Tes Total Allies 51 | . . . . . 3 . . 28 . 20 . . . . . . . . . . . . Largest Group 20 | . . . . . 3 . . 12 5 20 17 . . . . . . . . . . . Highest-Rated Group 760 | . . . . . 93 . . 294 122 760 654 . . . . . . . . . . . Highest-Rated Ally 46 | . . . . . 31 . . 39 31 46 46 . . . . . . . . . . . Total Orders 1 | . . . . . . . 1 . . . . . . . . . . . . . . . EXPLORE 1 | . . . . . . . 1 . . . . . . . . . . . . . . . Ally Attacks 328 | . . . . . 29 . . 134 4 50 111 . . . . . . . . . . . Total Damage 6428 | . . . . . 462 . . 2533 66 1209 2158 . . . . . . . . . . . Kills 47 | . . . . . 3 . . 24 . 2 18 . . . . . . . . . . . Allies Corrupted 5 | . . . . . . . . 3 . . 2 . . . . . . . . . . . Allies Melted . | . . . . . . . . . . . . . . . . . . . . . . . Intel | -11 -10 -10 -9 -8 -7 -7 -6 -6 -5 -5 -5 -5 -5 -5 -4 -4 -4 -4 -4 -3 -3 -3 ------- Run | Scr Mat Min Mat Mat Fac Sto Fac Ext Fac Was Fac Upp Upp Zhi Pro Fac Upp Upp War Pro Res Tes Robot Analysis Total 9 | . . . . . . . . 2 1 . 1 . . 4 . 1 . . . . . . Derelict Logs Recovered 8 | . . 1 . . . . . . . . . 1 3 . 2 . . 1 . . . . Drone Launches 2 | . . . . . . . 2 . . . . . . . . . . . . . . . Drone Recoveries . | . . . . . . . . . . . . . . . . . . . . . . . Exploration | -11 -10 -10 -9 -8 -7 -7 -6 -6 -5 -5 -5 -5 -5 -5 -4 -4 -4 -4 -4 -3 -3 -3 ------------- Run | Scr Mat Min Mat Mat Fac Sto Fac Ext Fac Was Fac Upp Upp Zhi Pro Fac Upp Upp War Pro Res Tes Turns Passed 13504 | 1 142 316 245 987 1128 1490 1066 2284 1981 657 995 125 199 85 139 187 243 102 267 197 506 162 Spaces Moved 10142 | 1 113 254 138 460 769 557 357 1277 955 346 639 338 442 175 368 345 394 275 637 533 570 199 Core 149 | . . . . . . . . 90 56 . . . . . . . . . . . . 3 Treads 794 | . . . . . . 4 . . . 287 503 . . . . . . . . . . . Legs 2510 | 1 113 254 71 . . 170 357 1187 357 . . . . . . . . . . . . . Wheels 2280 | . . . 67 460 769 383 . . 542 59 . . . . . . . . . . . . Hover 227 | . . . . . . . . . . . . . . . . . . . . . 31 196 Flight 4182 | . . . . . . . . . . . 136 338 442 175 368 345 394 275 637 533 539 . Fastest Speed 37 | 120 120 120 120 100 110 115 260 50 50 140 37 37 37 37 37 37 37 37 37 37 37 60 Average Speed 101 | 120 120 120 127 120 120 187 267 119 159 182 134 37 37 37 37 37 37 37 37 37 38 60 Slowest Speed 480 | 120 120 120 135 135 215 480 330 330 275 240 320 37 37 120 37 37 37 37 37 37 125 150 Overloaded Moves . | . . . . . . . . . . . . . . . . . . . . . . . Propulsion Burnouts . | . . . . . . . . . . . . . . . . . . . . . . . Robots Hopped 1 | . . . . . . . . . . . . . . . . 1 . . . . . . Cave-ins Triggered 1 | . . . . . . . . . 1 . . . . . . . . . . . . . Teleports 1 | . . . . . . . . . . . . . . . . . . . . . 1 . Exploration Rate (%) 48 | 2 31 74 17 41 25 90 12 85 25 97 15 61 71 62 61 11 51 50 95 79 23 31 Regions Visited 22 Branch Regions 12 Pre-discovered Areas 4 | . . . . . . . . . . . . . 1 3 . . . . . . . . Known Exits Taken 3 | . . . . . . . . 1 . . 1 . . . . 1 . . . . . . Unknown Exits Taken 17 | 1 1 1 1 1 1 1 1 . . . . 1 1 1 1 . 1 1 1 1 1 . Scrap Searched 14 | . . . . . . . . . . . . 2 2 . 2 . 2 3 . 3 . . Spaces Dug 43 | . . . . . . 3 . 2 15 . . . 7 . . 1 2 . . . 8 5 Terrain Destroyed 375 | . . . . 8 98 32 7 63 126 11 1 . 7 . . 1 2 . . . 8 11 Melee 43 | . . . . . . 3 . 2 15 . . . 7 . . 1 2 . . . 8 5 Projectile 129 | . . . . . 11 29 7 60 20 1 1 . . . . . . . . . . . AOE 202 | . . . . 8 87 . . . 91 10 . . . . . . . . . . . 6 Terrain Rammed . | . . . . . . . . . . . . . . . . . . . . . . . Walls Destroyed . | . . . . . . . . . . . . . . . . . . . . . . . Machines Disabled . | . . . . . . . . . . . . . . . . . . . . . . . Actions | -11 -10 -10 -9 -8 -7 -7 -6 -6 -5 -5 -5 -5 -5 -5 -4 -4 -4 -4 -4 -3 -3 -3 --------- Run | Scr Mat Min Mat Mat Fac Sto Fac Ext Fac Was Fac Upp Upp Zhi Pro Fac Upp Upp War Pro Res Tes Total 12186 | 2 119 257 182 705 898 819 430 1745 1201 369 736 337 467 190 371 386 487 274 671 532 782 226 Wait 608 | . . . 13 55 6 86 34 96 36 . 35 . 13 . . 5 81 . . . 148 . Move 10118 | . 112 253 137 459 768 556 356 1276 954 345 638 337 441 174 367 342 393 274 636 532 569 199 Hop 1 | . . . . . . . . . . . . . . . . 1 . . . . . . Pick Up 138 | . 4 . 7 26 16 9 7 17 24 2 9 . 3 1 2 4 . . 7 . . . Fast Attach 160 | . 2 . . 12 11 17 1 31 29 7 10 . . 6 . 6 6 . 7 . 9 6 Attach 68 | . . . 3 8 6 9 3 13 11 1 . . 1 1 . 2 . . 2 . 7 1 Detach 42 | . . . 1 2 2 7 1 2 7 . 5 . . . . 3 1 . 4 . 3 4 Swap 89 | . . . 4 11 9 14 2 30 9 . 4 . . 2 . 1 . . 2 . 1 . Drop 181 | 2 1 . 4 15 20 16 6 36 13 9 15 . 2 5 2 9 4 . 13 . 7 2 Fire 563 | . . 4 13 117 52 97 20 136 93 5 20 . . . . . . . . . 5 1 Melee 91 | . . . . . . 8 . 3 19 . . . 7 1 . 13 2 . . . 32 6 Ram . | . . . . . . . . . . . . . . . . . . . . . . . Kick . | . . . . . . . . . . . . . . . . . . . . . . . Crush . | . . . . . . . . . . . . . . . . . . . . . . . Escape Stasis 19 | . . . . . 6 . . . 6 . . . . . . . . . . . . 7 Rewire 107 | . . . . . 2 . . 105 . . . . . . . . . . . . . . Trap 1 | . . . . . . . . . . . . . . . . . . . . . 1 . Miscellaneous . | . . . . . . . . . . . . . . . . . . . . . . . Route ------- -11/Scrapyard -10/Materials -10/Mines (discovered 2 exits: *Mat x2) -9/Materials (discovered 2 exits: *Mat / Min) -8/Materials -7/Factory (discovered 2 exits: *Fac / *Sto) -7/Storage (discovered 2 exits: *Fac / [*Rec]) -6/Factory (discovered 5 exits: Fac x4 / *Ext) -6/Extension (discovered 3 exits: *Fac x2 / [*Cet]) -5/Factory -5/Waste -5/Factory (discovered 2 exits: *Upp x2) -5/Upper Caves -5/Upper Caves (discovered 2 exits: *Fac / *Zhi) -5/Zhirov -4/Proximity Caves -4/Factory -4/Upper Caves -4/Upper Caves -4/Warlord -3/Proximity Caves -3/Research -3/Testing (discovered 1 exit: Res) History --------- Turn | Location | Event 2 | -11/Scrapyard | Discovered new exit (range 0) 2 | -11/Scrapyard | Entered Materials 132 | -10/Materials | Discovered new exit (range 8) 144 | -10/Materials | Entered Mines 230 | -10/Mines | Discovered new exit (range 15) 307 | -10/Mines | Build established: Mutant 380 | -10/Mines | Discovered new exit (range 11) 460 | -10/Mines | Entered Materials 460 | -9/Materials | Evolved 2 slots: Utility x2 461 | -9/Materials | Identified exit to Mines 693 | -9/Materials | Discovered new exit (range 10) 705 | -9/Materials | Entered another Materials area 705 | -8/Materials | Evolved 2 slots: Propulsion x2 1076 | -8/Materials | Lost 5 parts (2n2u1w) 1142 | -8/Materials | Lost 3 parts (1p1n1w) 1250 | -8/Materials | Lost 4 parts (3n1w) 1368 | -8/Materials | Build established: Scavenger-Mutant 1442 | -8/Materials | Discovered new exit (range 5) 1692 | -8/Materials | Entered Factory 1692 | -7/Factory | Evolved 2 slots: Power x1, Utility x1 1815 | -7/Factory | Discovered new exit (range 15) 2401 | -7/Factory | Lost 5 parts (1p2n1u1w) 2462 | -7/Factory | Allied Derelicts emerged from ambush trap array 2541 | -7/Factory | Fabricated Huge Storage Unit (x1) 2568 | -7/Factory | Discovered new exit (range 13) 2820 | -7/Factory | Entered Storage 3188 | -7/Storage | Lost 3 parts (1p2n) 3660 | -7/Storage | Build established: Mutant 3685 | -7/Storage | Core integrity fell below 50% 3722 | -7/Storage | Lost 8 parts (2p3n1u2w) 3900 | -7/Storage | Repaired Imp. Carbon-fiber Leg 3958 | -7/Storage | Used back door to open Recycling access 3958 | -7/Storage | Discovered new exit (range 4) 4076 | -7/Storage | Build established: Scavenger-Mutant 4260 | -7/Storage | Discovered new exit (range 19) 4310 | -7/Storage | Entered Factory 4310 | -6/Factory | Evolved 2 slots: Utility x1, Weapon x1 4567 | -6/Factory | Identified exit to Factory 4757 | -6/Factory | Discovered new exit (range 42) 5080 | -6/Factory | Build established: Scavenger-Gunner 5376 | -6/Factory | Entered Extension 5513 | -6/Extension | Released all parts (4) 5543 | -6/Extension | Lost 11 parts (2p3n2u4w) 5551 | -6/Extension | Rescued a captive Derelict 5553 | -6/Extension | Rescued a captive Derelict 5760 | -6/Extension | Rescued a captive Derelict 5762 | -6/Extension | Rescued a captive Derelict 6055 | -6/Extension | Build established: Scavenger-Tank 6076 | -6/Extension | Disrupted transfer network 6132 | -6/Extension | Core integrity fell below 50% 6137 | -6/Extension | Spotted B-75 Beast 6204 | -6/Extension | Lost 4 parts (1p2u1w) 6296 | -6/Extension | Lost 4 parts (1p1u2w) 6476 | -6/Extension | Destroyed B-75 Beast 6482 | -6/Extension | Spotted B-75 Beast 6519 | -6/Extension | Lost 5 parts (1n3u1w) 6735 | -6/Extension | Destroyed B-75 Beast 6759 | -6/Extension | Discovered exit to Factory (range 4) 6792 | -6/Extension | Build established: Scavenger-Skirmisher 6867 | -6/Extension | Rescued a captive Derelict 6871 | -6/Extension | Rescued a captive Derelict 6911 | -6/Extension | Rescued a captive Derelict 6930 | -6/Extension | Rescued a captive Derelict 6931 | -6/Extension | Rescued a captive Derelict 7016 | -6/Extension | Rescued a captive Derelict 7104 | -6/Extension | Rescued a captive Derelict 7105 | -6/Extension | Rescued a captive Derelict 7186 | -6/Extension | System corruption reached 10% 7442 | -6/Extension | Disrupted transfer network 7443 | -6/Extension | Discovered new exit (range 16) 7444 | -6/Extension | Discovered exit to Factory (range 15) 7660 | -6/Extension | Entered Factory 7660 | -5/Factory | Accompanied by 5 allies 7660 | -5/Factory | Evolved 2 slots: Utility x2 7950 | -5/Factory | Build established: Scavenger-Tank 8128 | -5/Factory | Crushed by falling debris 8468 | -5/Factory | Lost 6 parts (2p2n1u1w) 8555 | -5/Factory | System corruption reached 10% 8607 | -5/Factory | Lost 3 parts (2n1u) 8818 | -5/Factory | Build established: Scavenger-Mutant 9183 | -5/Factory | Lost 12 parts (2p3n4u3w) 9218 | -5/Factory | Found Hvy. Reflective Plating 9641 | -5/Factory | Sucked down chute 9641 | -5/Factory | Entered Waste 9642 | -5/Waste | Joined by Warlord forces that had cleared the area 9818 | -5/Waste | Found Damper Plating 10168 | -5/Waste | Discovered new exit (range 15) 10190 | -5/Waste | A Compactor rumbled back to life 10191 | -5/Waste | Spotted C-40 Crusher 10193 | -5/Waste | Allies destroyed C-40 Crusher 10250 | -5/Waste | A Compactor rumbled back to life 10250 | -5/Waste | Spotted C-40 Crusher 10263 | -5/Waste | Allies destroyed C-40 Crusher 10298 | -5/Waste | Entered Factory 10298 | -5/Factory | Accompanied by 17 allies 10369 | -5/Factory | Identified exit to Upper Caves 10420 | -5/Factory | Core integrity fell below 50% 10953 | -5/Factory | Build established: Scavenger-Tank 11293 | -5/Factory | Entered Upper Caves 11337 | -5/Upper Caves | Encountered a Warlord checkpoint 11338 | -5/Upper Caves | Learned Factory stockpile data 11391 | -5/Upper Caves | Discovered new exit (range 3) 11418 | -5/Upper Caves | Entered another Upper Caves area 11418 | -5/Upper Caves | Discovered new exit (range 11) 11486 | -5/Upper Caves | Build established: Hacker-Mutant 11569 | -5/Upper Caves | Learned 4 Factory zone layouts 11588 | -5/Upper Caves | Discovered new exit (range 14) 11609 | -5/Upper Caves | Learned 8 Factory zone layouts 11617 | -5/Upper Caves | Entered Zhirov 11617 | -5/Zhirov | Discovered new exit (range 3) 11624 | -5/Zhirov | Met Zhirov 11632 | -5/Zhirov | Learned location of Quarantine (-2) 11632 | -5/Zhirov | Learned location of Testing (-3) 11632 | -5/Zhirov | Learned location of Command (-1) 11640 | -5/Zhirov | Zhirov requested help retrieving the SGEMP Prototype 11647 | -5/Zhirov | Found Alien Artifact 11647 | -5/Zhirov | Identified Integrated Reactor 11647 | -5/Zhirov | Installed Integrated Reactor, increased core energy generation (+10) 11658 | -5/Zhirov | Found Alien Artifact 11702 | -5/Zhirov | Entered Proximity Caves 11747 | -4/Proximity Caves | Learned Research emergency access door positions 11754 | -4/Proximity Caves | Learned Research security intel 11837 | -4/Proximity Caves | Discovered new exit (range 11) 11841 | -4/Proximity Caves | Entered Factory 11841 | -4/Factory | Evolved 2 slots: Utility x2 11842 | -4/Factory | Identified exit to Upper Caves 11843 | -4/Factory | Identified exit to DSF 12028 | -4/Factory | Entered Upper Caves 12035 | -4/Upper Caves | Encountered a Warlord checkpoint 12073 | -4/Upper Caves | Spotted B-86 Titan 12169 | -4/Upper Caves | Discovered new exit (range 11) 12271 | -4/Upper Caves | Entered another Upper Caves area 12346 | -4/Upper Caves | Discovered new exit (range 5) 12351 | -4/Upper Caves | Learned 4 Research zone layouts 12365 | -4/Upper Caves | Learned 8 Factory zone layouts 12365 | -4/Upper Caves | Learned Extension security intel 12365 | -4/Upper Caves | Learned Factory terminal intel 12365 | -4/Upper Caves | Learned Factory security intel 12373 | -4/Upper Caves | Entered Warlord 12392 | -4/Warlord | Discovered new exit (range 9) 12427 | -4/Warlord | Visited the Vortex Lab 12433 | -4/Warlord | Found Prototype Energy Gun 12434 | -4/Warlord | Found Prototype Energy Gun 12448 | -4/Warlord | Warlord's base attacked by MAIN.C 12599 | -4/Warlord | Met Warlord 12630 | -4/Warlord | Opened side exit 12640 | -4/Warlord | Entered Proximity Caves 12833 | -3/Proximity Caves | Discovered new exit (range 13) 12837 | -3/Proximity Caves | Entered Research 12837 | -3/Research | Evolved 2 slots: Utility x2 12860 | -3/Research | Found Prototype Device 12860 | -3/Research | Identified Exp. Thermal Shield 13235 | -3/Research | Lost 3 parts (2p1u) 13235 | -3/Research | Found Enh. Force Lance 13297 | -3/Research | Cargo convoy interrupted 13311 | -3/Research | System corruption reached 10% 13311 | -3/Research | Identified Vortex Shotgun (x2) 13314 | -3/Research | Core integrity fell below 50% 13323 | -3/Research | Identified Transdimensional Reconstructor 13323 | -3/Research | Warped through subspace 13330 | -3/Research | Discovered new exit (range 21) 13343 | -3/Research | Entered Testing 13352 | -3/Testing | Lost 11 parts (4n6u1w) 13376 | -3/Testing | Found Prototype Ballistic Gun 13376 | -3/Testing | Identified Hyp. Multirail 13385 | -3/Testing | Found Prototype Launcher 13385 | -3/Testing | Identified Tactical Quantum Warhead 13402 | -3/Testing | Found Prototype Slashing Weapon 13402 | -3/Testing | Identified Centrium Greatsword 13420 | -3/Testing | Scanned by Researcher 13443 | -3/Testing | Found Prototype Device 13443 | -3/Testing | Identified Exp. EM Disruption Field 13455 | -3/Testing | Found Prototype Slashing Weapon 13455 | -3/Testing | Identified Nanosword 13460 | -3/Testing | Identified exit to Research 13486 | -3/Testing | Spotted Striker 13487 | -3/Testing | Spotted Striker 13491 | -3/Testing | Core integrity fell below 20% 13493 | -3/Testing | Spotted Alpha 7 13505 | -3/Testing | Destroyed by Striker with Plasma Lance Last Messages --------------- Downloaded map data. 13484_ ALERT: Hostiles spotted, dispatching reinforcements to Terminal T004. 13485_ QRO=T6>NYUDY RL4ZUIM7%P%ZKXNUYB08SJF= 13491_ Knocked back. 13492_ Acquired 8 matter. 13493_ Knocked back. 13494_ Acquired 9 matter. 13496_ Slug penetrates Wall. 13496_ Knocked back. 13498_ Imp. Antigrav System destroyed. 13498_ Knocked back. 13498_ Centrium Greatsword destroyed. 13499_ Machine disabled. 13500_ Acquired 1 matter. 13502_ System corrupted: Matter fused (-10). 13503_ C-55 Analyst destroyed. 13503_ Penetrated by Slug. 13503_ Exp. EM Disruption Field destroyed. 13505_ Critical hit (Impale). Map ----- +----------------------------------------------------+ | ???????# ###############??? | | ???????# #????????????????? | | ???????# ########?????????? | | ???????# ########### | | ???????# | | ???????# | | ???????# """ """ """ """ """ | | ???????# """ """ """ """ """ | | ???????# """ """ """ """ """ | | ???????# | | ???????# | | ???????+ | | ???????# | | ???????# ######## | | ???????############ ######### | | ?????????????? # # ! | | ??????????????""" # # ""T"" | | ??????????????""" + + """"" / | | ??????????????""" # # | | ?????????????? # ## ###### | | ?????????????? # ### ##### | | ??????????????##### # | | ??????????????????# # """ "" | | ??########????????# # """ "" | | ??# #????????# + """ "" | | ??# @ #????????# # T | | ??# $KK ####?????# # """ "" | | ??# %$% ## ####### # """ "" | | ??# $$ 7 % % # """ "" | | ??# ! # | | ??# # ################ | | ??# # #??????????????? | | ??##### #### #??????????????? | | ??????####????#??????????????? | | ?????????????????????????????? | | ?????????????????????????????? | | ?????????????????????????????? | | ?????????????????????????????? | | ?????????????????????????????? | | ?????????????????????????????? | | | | | | | | | | | | | | | | | | | | | +----------------------------------------------------+ Best States ------------- Heat Dissipation 90 Energy Generation 37 Energy Capacity 700 Matter Stores 550 Matter Capacity 550 Sight Range 22 Robot Scan Range 18 Terrain Scan Range 16 Terrain Scan Density 210 ECM Strength 2 Additional Mass Support 6 Base Temperature (-) 200 Armor Coverage 1600 Resistance: KI 30 Resistance: TH 25 Resistance: EM 90 Core Shielding 20 Utility Shielding 90 Melee Speed Boost 20 Phase Shifting 5 Evasion (%) 77 Targeting Accuracy 5 Melee Accuracy 5 Target Analysis 6 Armor Integrity Analysis 30 Recoil Reduction 10 Particle Charging 25 Kinecelleration 30 Salvage Targeting 3 Offensive Hacking 28 Defensive Hacking 14 Item Schematics ----------------- Huge Storage Unit | -8/Materials | Scanalyzed Phasing Sabre | -5/Factory | Scanalyzed Assault Drone Bay | -5/Zhirov | Free Exp. Heat Sink | -5/Zhirov | Free Exp. Optical Array | -5/Zhirov | Free Imp. Arc Thrower | -5/Zhirov | Free Graviton Reactor | -4/Factory | Hacked Robot Schematics ------------------ None Fabricated ------------ Huge Storage Unit | x1 | -7/Factory Alien Tech Used ----------------- Integrated Reactor Transdimensional Reconstructor Achievements -------------- None Challenges ------------ None Game ------ Seed RegenerativePhysicsBiocell Manual? 0 Play Time 03:10:27 Cumulative 343.9 hours Start 2022.03.17 @ 00:35:54 End 2022.07.21 @ 11:40:52 Sessions 17 Manual Loads 0 Difficulty Rogue Special Mode None Game No. 475 Rogue 474 Adventurer 0 Explorer 1 Win Type - Total 2 Types 2/0/0/0/0/0/0/0/0 Lore% 68 Gallery% 81 Achievement% 61 Wizard Run 0 Options --------- ASCII 1 Keyboard 1 Movement Vi Keybinds 0 Fullscreen 2 Font 12/Tallcaps Map View 76x56 Tactical HUD 1 Map Filters NONE Filters LOW_CONTRAST(13,24,33) Steam 0 RUN: ad8252b5-fbc1-42f3-bcbe-ad7d90c2f25c